Cogmind - Beta 11 X7 @@@ ROGUE MODE // 2021.10.20 @ 19:05:01 Player: Captain Croissandwich Result: Destroyed by Tracker with Linked Autogun Performance ------------- Evolutions (7) 3500 Regions Visited (28) 5600 Robots Destroyed (301) 1505 Value Destroyed (12261) 12261 Prototype IDs (250) 5000 Alien Tech Used (10) 2000 Bonus (13854) 13854 TOTAL SCORE: 43720 Bonus ------- High Alert Combat Kills 1103 Follower Combat Kills 2553 Entered Garrisons 200 Used RIF Installer 500 Network Hubs Disabled 400 Aligned with FarCom 300 Met Data Miner 300 Used Data Conduit 3000 Met Zhirov 300 Built Enhanced Grunts 300 A7 Reached Mainframe 300 Found Hidden Lab 3000 Decrypted A0 Command 3000 Pursued by Intercept 1000 Friendly Fire -2402 Cogmind --------- Core Integrity 0/1300 Matter 290/300 Energy 100/100 System Corruption 50% Temperature Cool (0) Movement Core (350) Ox6 Location -3/Section 7 Parts ------- > --- POWER (3) -------- (None) > --- PROPULSION (6) --- (None) > --- UTILITY (11) ----- Large Storage Unit Spectral Analyzer System Shield > --- WEAPON (2) ------- (None) > --- INVENTORY (15) --- Light Antimatter Reactor Heavy Tesla Rifle Potential Cannon Guided Remote Datajack Peak State ------------ > --- POWER ------------ Particle Reactor Light Particle Reactor Light Particle Reactor > --- PROPULSION ------- Advanced Heavy Treads Centrium Heavy Treads Experimental Biometal Heavy Treads > --- UTILITY ---------- Advanced Heat Sink Advanced Heat Sink Large Storage Unit Spectral Analyzer Centrium Medium Armor Plating Heavy Regenerative Plating AEGIS Remote Shield System Shield Microwarp Drive > --- WEAPON ----------- Potential Cannon > --- INVENTORY -------- Advanced Heavy Treads Transdimensional Reconstructor High-powered Transdimensional Reconstructor Subatomic Replicator Heavy Tesla Rifle Linked Autogun Guided Remote Datajack Sigix Broadsword [Rating: 196] Favorites ----------- Power Micro Fission Core Engine Heavy Deuterium Engine Power Core Micro Fission Core Reactor Light Particle Reactor Propulsion Advanced Treads Treads Advanced Treads Leg Enhanced Flexi-carbon Leg Flight Unit Cooled Nuclear Pulse Thruster Utility Large Storage Unit Device Experimental Heat Sink Storage Large Storage Unit Processor Advanced Targeting Computer Hackware Relay Coupler [Grunt] Protection Layered Medium Armor Plating Artifact Microwarp Drive Weapon Flak Gun Energy Gun Small Laser Energy Cannon Warp Cannon Ballistic Gun Flak Gun Ballistic Cannon Heavy Gauss Cannon Launcher Rocket Array Special Weapon Field Lobotomy Kit Slashing Weapon Longsword +1 Build | -11 -10 -10 -10 -9 -8 -8 -8 -7 -7 -7 -7 -6 -6 -6 -6 -6 -6 -5 -5 -5 -5 -4 -4 -4 -4 -3 -3 -3 ------- Run | Scr Mat Min Exi Min Mat Gar Mat Fac Low Low Dat Pro Fac Ext Cet Arc Hub Fac Upp Upp Zhi Pro Fac Arm Lab Res Qua Sec Slots Evolved 14 | . . . . . 4 . . 2 . . . . 2 . . . . 2 . . . . 2 . . 2 . . Power 1 | . . . . . . . . . . . . . . . . . . . . . . . 1 . . . . . Propulsion 4 | . . . . . 2 . . . . . . . . . . . . . . . . . 1 . . 1 . . Utility 9 | . . . . . 2 . . 2 . . . . 2 . . . . 2 . . . . . . . 1 . . Weapon . | . . . . . . . . . . . . . . . . . . . . . . . . . . . . . Parts Attached 397 | 4 13 5 . 1 19 12 26 26 11 6 3 12 9 32 11 8 20 14 13 11 17 5 20 . 10 9 13 67 Power 23 | 1 1 1 . . 2 . 1 . . . 1 1 . 3 . 1 . . . . . 1 2 . . . . 8 Engine 5 | 1 1 1 . . 1 . 1 . . . . . . . . . . . . . . . . . . . . . Core 10 | . . . . . 1 . . . . . 1 1 . 3 . 1 . . . . . 1 2 . . . . . Reactor 8 | . . . . . . . . . . . . . . . . . . . . . . . . . . . . 8 Propulsion 62 | 2 . 1 . . 3 2 5 1 . 2 . 1 2 7 2 . . 2 . . 6 . 7 . 2 6 3 8 Treads 38 | 2 . 1 . . 3 2 5 1 . 2 . 1 2 7 2 . . 2 . . . . . . . 1 . 7 Leg 4 | . . . . . . . . . . . . . . . . . . . . . 3 . 1 . . . . . Wheel . | . . . . . . . . . . . . . . . . . . . . . . . . . . . . . Hover . | . . . . . . . . . . . . . . . . . . . . . . . . . . . . . Flight 20 | . . . . . . . . . . . . . . . . . . . . . 3 . 6 . 2 5 3 1 Utility 69 | 1 2 . . . 4 1 2 8 3 . . 1 2 5 3 4 3 6 3 . 3 . 2 . 2 1 3 10 Device 20 | . 1 . . . . . . 3 . . . . 1 . . 2 . 2 2 . 1 . 2 . 1 . 1 4 Storage 5 | 1 1 . . . 1 . 1 . . . . . . . . . . . . . . . . . . 1 . . Processor 5 | . . . . . 2 1 . . . . . . . 1 . . . . . . . . . . . . 1 . Hackware 8 | . . . . . 1 . . 2 1 . . . . 2 . . . . . . . . . . 1 . 1 . Protection 29 | . . . . . . . 1 3 2 . . 1 1 2 3 2 3 4 1 . 2 . . . . . . 4 Artifact 2 | . . . . . . . . . . . . . . . . . . . . . . . . . . . . 2 Weapon 243 | . 10 3 . 1 10 9 18 17 8 4 2 9 5 17 6 3 17 6 10 11 8 4 9 . 6 2 7 41 Energy Gun 18 | . 5 . . . . . . . . . . . . . 1 1 3 1 2 2 . . . . . . . 3 Energy Cannon 28 | . . . . . . . . . . . . . . . . . . . . . . . . . 2 1 4 21 Ballistic Gun 98 | . 2 2 . . 6 4 11 9 2 2 2 4 2 8 3 2 7 5 4 5 2 3 3 . . . . 10 Ballistic Cannon 2 | . . . . . . . . . . . . . . . . . . . . . . . 2 . . . . . Launcher 33 | . 3 1 . 1 3 3 4 3 3 1 . 4 1 . . . 1 . 1 1 2 . 1 . . . . . Special Weapon 23 | . . . . . . . . 2 3 . . . 1 7 1 . 1 . . . 1 . 1 . 3 1 . 2 Impact Weapon . | . . . . . . . . . . . . . . . . . . . . . . . . . . . . . Slashing Weapon 41 | . . . . . 1 2 3 3 . 1 . 1 1 2 1 . 5 . 3 3 3 1 2 . 1 . 3 5 Piercing Weapon . | . . . . . . . . . . . . . . . . . . . . . . . . . . . . . Special Melee Weapon . | . . . . . . . . . . . . . . . . . . . . . . . . . . . . . Unidentified Prototypes 24 | . . . . . 2 . 1 . . . . . . 2 . . . . . . 1 . . 1 7 . 3 7 Corrupted Parts 5 | . . . . . . . . . . . . . . . 2 . . . . . 1 . . . . . . 2 System Corruption 26 | . . . . . . . . . . . . . . . 9 . . . . . 2 . . . . . . 15 Parts Lost 73 | . 2 3 . . 1 1 2 2 1 . 1 4 1 4 1 1 1 1 3 . . . 17 1 1 2 . 23 Power 19 | . 1 1 . . 1 . 1 . . . 1 1 . 2 . . . . . . . . 3 . . . . 8 Propulsion 16 | . . 1 . . . . 1 . 1 . . 1 1 1 . . . . . . . . 4 1 . 1 . 4 Utility 26 | . . . . . . 1 . 2 . . . 1 . 1 . . 1 1 3 . . . 7 . . 1 . 8 Weapon 12 | . 1 1 . . . . . . . . . 1 . . 1 1 . . . . . . 3 . 1 . . 3 Highest Loss Streak 11 | . 2 2 . . 1 1 1 2 1 . 1 3 1 2 1 1 1 1 2 . . . 6 3 1 1 . 11 Average Slot Usage (%) 87 | . 93 99 100 100 96 97 98 99 96 84 98 97 96 98 88 85 86 84 87 80 81 100 74 45 27 39 54 63 Engine 3 | . 13 14 14 14 4 9 8 7 7 7 4 . . . . . . . . . . . . . . . 9 . Core 2 | . . . . . 3 . . . . . . 7 6 5 6 6 6 5 5 5 5 5 6 . . . . . Treads 17 | . 28 28 28 28 34 36 35 30 27 15 30 28 25 24 15 13 13 9 11 4 . . . . . . . 12 Flight 1 | . . . . . . . . . . . . . . . . . . . . . 4 11 14 13 8 19 24 . Device 8 | . 8 14 14 14 9 2 . 6 . . . . 4 . . 2 . 10 12 17 17 17 14 15 3 . 2 12 Storage 6 | . 14 14 14 14 9 9 9 7 7 7 7 7 6 6 6 6 6 5 5 5 5 5 5 5 1 3 4 4 Processor 10 | . . . . . 9 12 18 15 15 15 15 15 13 13 13 13 13 11 11 11 11 11 10 5 5 4 4 4 Hackware 6 | . . . . . 7 9 6 4 15 15 15 15 13 18 13 13 13 11 9 . . . . . 2 1 1 4 Protection 10 | . . . . . . . 2 9 6 7 7 5 11 13 20 17 20 16 17 23 23 23 9 . . . . 5 Energy Gun 1 | . 15 7 . . . . . . . . . . . . . 4 1 1 . . . . . . . . . . Ballistic Gun 10 | . 11 20 28 14 15 11 16 13 1 11 3 12 11 10 12 8 8 8 9 9 8 10 5 . . . . 1 Launcher 1 | . . . . 13 2 4 . . 6 2 5 1 1 . . . . . . . . . . . . . . . Naked Turns . | . . . . . . . . . . . . . . . . . . . . . . . . . . . . . Heaviest Build 144 | 10 31 29 27 29 36 41 44 61 66 62 61 56 52 50 46 49 53 59 64 64 74 73 81 27 27 37 41 144 Greatest Support 235 | 40 40 40 40 40 86 88 100 100 100 106 106 112 112 104 160 160 160 160 160 160 56 56 56 27 15 43 44 235 Greatest Overweight (x) 23 | . . . . . . . . . . 1 . . . . 1 . . . . 21 23 1 3 2 8 1 1 21 Average Overweight (x) . | . . . . . . . . . . . . . . . . . . . . 3 8 1 . . . . . . Largest Inventory Capacity 15 | 8 15 15 15 15 15 15 15 15 15 15 15 15 15 15 15 15 15 15 15 15 15 15 15 15 15 15 15 15 Average Capacity 14 | 6 14 15 15 15 15 15 15 15 15 15 15 15 15 15 15 15 15 15 15 15 15 15 15 15 9 12 15 15 Most Carried 15 | 3 15 15 14 15 15 15 15 15 15 15 15 14 15 15 15 15 15 15 15 15 15 15 15 12 11 15 15 15 Average Carried 13 | 2 5 14 13 14 14 14 14 14 14 14 13 13 14 14 14 14 14 14 14 13 14 15 12 11 6 11 14 13 Final Capacity 15 | 8 15 15 15 15 15 15 15 15 15 15 15 15 15 15 15 15 15 15 15 15 15 15 15 15 5 15 15 15 Final Carried 15 | 3 15 14 14 15 15 15 15 15 14 13 14 13 15 15 15 15 15 15 12 13 15 15 12 11 5 14 15 5 Class Distribution -------------------- 31% | Scavenger-Mutant 26% | Mutant 22% | Bothacker-Mutant 10% | Hacker-Mutant 7% | Generator-Mutant Dominant Class ---------------- Mutant | -10/Materials Mutant | -10/Mines Mutant | -10/Exiles Mutant | -9/Mines Mutant | -8/Materials Mutant | -8/Garrison Mutant | -8/Materials Bothacker-Mutant | -7/Factory Bothacker-Mutant | -7/Lower Caves Bothacker-Mutant | -7/Lower Caves Bothacker-Mutant | -7/Data Miner Bothacker-Mutant | -6/Proximity Caves Bothacker-Mutant | -6/Factory Hacker-Mutant | -6/Extension Hacker-Mutant | -6/Cetus Hacker-Mutant | -6/Archives Hacker-Mutant | -6/Hub_04(d) Scavenger-Mutant | -5/Factory Scavenger-Mutant | -5/Upper Caves Scavenger-Mutant | -5/Upper Caves Scavenger-Mutant | -5/Zhirov Scavenger-Mutant | -4/Proximity Caves Scavenger-Mutant | -4/Factory Mutant | -4/Armory Mutant | -4/Lab Sprinter | -3/Research Sprinter | -3/Quarantine Generator-Mutant | -3/Section 7 Resources | -11 -10 -10 -10 -9 -8 -8 -8 -7 -7 -7 -7 -6 -6 -6 -6 -6 -6 -5 -5 -5 -5 -4 -4 -4 -4 -3 -3 -3 ----------- Run | Scr Mat Min Exi Min Mat Gar Mat Fac Low Low Dat Pro Fac Ext Cet Arc Hub Fac Upp Upp Zhi Pro Fac Arm Lab Res Qua Sec Matter Collected 8828 | 240 201 56 . 70 306 358 724 763 222 202 116 319 210 753 245 181 396 298 45 167 597 360 365 . . 103 89 1442 Remotely . | . . . . . . . . . . . . . . . . . . . . . . . . . . . . . Salvage Created 11195 | . 370 254 . 61 381 423 1345 1605 422 200 74 273 393 483 18 117 786 172 84 165 465 425 107 . . 95 . 2477 Parts 521 | . 28 15 . 11 21 31 68 87 20 13 2 11 12 25 . 8 31 14 1 7 . 13 2 . . 3 . 98 Haulers Intercepted 12 | . 1 . . . . . 4 4 . . . . 2 . . . . . . . . . . . . 1 . . Recyclers Shooed 15 | . 3 1 . . 1 . 6 1 . . . . 1 1 . . . . . . . . . . . . . 1 Parts Field Recycled . | . . . . . . . . . . . . . . . . . . . . . . . . . . . . . Retrieved Matter . | . . . . . . . . . . . . . . . . . . . . . . . . . . . . . Parts Self-Destructed 42 | . . . . . . . . . 9 4 . 10 . . . . . . 1 5 . 13 . . . . . . Prevented 2 | . . . . . . . . . . 2 . . . . . . . . . . . . . . . . . . Kills | -11 -10 -10 -10 -9 -8 -8 -8 -7 -7 -7 -7 -6 -6 -6 -6 -6 -6 -5 -5 -5 -5 -4 -4 -4 -4 -3 -3 -3 ------- Run | Scr Mat Min Exi Min Mat Gar Mat Fac Low Low Dat Pro Fac Ext Cet Arc Hub Fac Upp Upp Zhi Pro Fac Arm Lab Res Qua Sec Combat Hostiles Destroyed 220 | . 9 10 . 3 14 22 18 22 14 8 4 10 5 7 1 . 3 5 6 6 . 9 4 . . . . 40 Melee 9 | . . . . . . . 3 1 . . . . . . . . 1 . . 2 . . . . . . . 2 Guns 98 | . 6 9 . 2 5 8 7 12 2 1 . 4 4 7 1 . 2 5 2 . . 9 1 . . . . 11 Cannons 9 | . . . . . . . . . . . . . . . . . . . . . . . 2 . . . . 7 AOE 98 | . 3 1 . 1 9 14 8 9 12 7 4 6 1 . . . . . 4 4 . . 1 . . . . 14 Classes Destroyed 17 | . 6 . . . 3 1 1 1 . 1 . . . 2 . . 1 . . 1 . . . . . . . . Worker 16 | . 2 . . 1 . . 1 2 . . . . . . . . 8 . . . . . . . . . . 2 Builder 8 | . 1 . . . . . . 2 . . . . 1 1 . . 2 1 . . . . . . . . . . Tunneler 1 | . . . . . . . . . . . . . . 1 . . . . . . . . . . . . . . Hauler 12 | . 1 . . . . . 4 4 . . . . 2 . . . . . . . . . . . . 1 . . Recycler 21 | . . . . . . . 6 8 . . . . 1 . . . 3 . . . . . . . . . . 3 Operator 5 | . . . . . . . . . . . . . . 1 . 4 . . . . . . . . . . . . Watcher 13 | . 2 . . . 1 . 3 4 . . . . . 2 . . 1 . . . . . . . . . . . Swarmer 66 | . 3 6 . 3 4 11 5 4 2 4 . . . 2 1 . . 1 . 4 . 7 . . . . . 9 Grunt 81 | . 6 4 . . 7 8 11 11 7 . . 7 4 2 . . 1 . 4 . . . . . . . . 9 Brawler 5 | . . . . . 1 2 . 1 1 . . . . . . . . . . . . . . . . . . . Duelist 4 | . . . . . 1 . . 1 2 . . . . . . . . . . . . . . . . . . . Sentry 18 | . . . . . 1 . 2 2 1 . . 1 1 3 . . 1 . . . . 1 2 . . . . 3 Hunter 11 | . . . . . . 1 . . 1 . . 2 . 1 . . . . 2 . . . 2 . . . . 2 Programmer 19 | . . . . . . . . 3 . . . . . . . . . 4 . 1 . 1 . . . . . 10 Behemoth 1 | . . . . . . . . . . . . . . . . . 1 . . . . . . . . . . . S7 Guard 1 | . . . . . . . . . . . . . . . . . . . . . . . . . . . . 1 Enhanced Grunt 5 | . . . . . . . . . . . 4 . . . . . . . . . 1 . . . . . . . Tracker 5 | . . . . . . . . . . . . . . . . . . . . . . . . . . . . 5 Combat Programmer 1 | . . . . . . . . . . . . . . . . . . . . . . . . . . . . 1 Master Thief 1 | . . . . . . . . . . 1 . . . . . . . . . . . . . . . . . . Thug 2 | . . . . . . . . . . 1 . . . 1 . . . . . . . . . . . . . . Savage 3 | . . . . . . . . . . 3 . . . . . . . . . . . . . . . . . . Mutant 1 | . . . . . . . . . . . . . . . . . . . . 1 . . . . . . . . Best Kill Streak 11 | . 5 3 . 3 6 9 6 11 10 4 5 7 4 3 1 1 10 4 4 6 . 5 2 . . 1 . 7 Combat Bots Only 10 | . 3 3 . 3 5 9 3 5 10 4 4 7 3 2 1 . 1 3 4 6 . 5 2 . . . . 6 Max Kills in Single Turn 9 | . 3 1 . 1 2 3 4 6 4 4 2 3 1 2 1 1 9 1 3 4 1 2 1 . . 1 . 3 Gunslinging 1 | . . . . . . 1 . 1 . . . . . . . . . . . . . . . . . . . . Exploded 4 | . 2 1 . 1 2 3 3 4 4 3 2 3 1 . . . . . 3 4 . . 1 . . . . 3 Melee 1 | . . . . . . . 1 1 . . . . . . . . 1 . . 1 . . . . . . . 1 Uniques/NPCs Destroyed 1 | . . . . . . . . . . . 1 . . . . . . . . . . . . . . . . . Data Miner (-7/Data Miner) Combat | -11 -10 -10 -10 -9 -8 -8 -8 -7 -7 -7 -7 -6 -6 -6 -6 -6 -6 -5 -5 -5 -5 -4 -4 -4 -4 -3 -3 -3 -------- Run | Scr Mat Min Exi Min Mat Gar Mat Fac Low Low Dat Pro Fac Ext Cet Arc Hub Fac Upp Upp Zhi Pro Fac Arm Lab Res Qua Sec Damage Taken 21760 | . 386 435 . 79 373 218 873 1162 246 168 312 620 263 1136 263 27 1595 630 1129 524 9 640 1521 81 334 248 388 8100 Core 2557 | . 70 77 . 6 26 . 108 242 20 25 48 81 48 78 37 . 102 66 85 51 . 15 155 22 173 150 42 830 Absorbed by Shields 2216 | . . . . . . . . . . . . . . 72 14 . . . . . 9 149 311 . . . . 1661 Reduced by Siege Mode 11 | . . . . . . . . . . . . . . . . . . . 11 . . . . . . . . . Core Remaining (%) 65 | 100 . . . 38 . . 75 . . . . 40 . . . . 68 . . . . 78 . . 62 . . . Volleys Fired 732 | . 43 31 . 6 35 21 70 60 9 10 5 10 18 55 13 47 29 21 18 30 5 18 30 . 5 10 13 120 Largest 2 | . 2 2 . 1 2 2 2 2 1 1 1 2 2 2 2 2 2 2 2 2 1 2 2 . 1 1 1 2 Hottest 240 | . 80 60 . 33 43 45 46 56 45 45 45 73 56 56 56 80 240 80 80 80 45 56 89 . 100 100 113 200 Shots Fired 1058 | . 75 59 . 6 52 25 121 113 9 10 5 15 27 81 26 51 49 39 28 38 5 29 42 . 5 10 13 125 Gun 871 | . 70 58 . 5 41 17 117 107 3 6 . 9 24 61 26 51 49 39 25 37 2 29 28 . . . . 67 Cannon 95 | . . . . . . . . . . . . . . . . . . . . . . . 10 . 4 10 13 58 Launcher 64 | . 5 1 . 1 11 8 4 4 4 3 5 6 2 . . . . . 3 1 3 . 3 . . . . . Special 28 | . . . . . . . . 2 2 1 . . 1 20 . . . . . . . . 1 . 1 . . . Kinetic 734 | . 32 38 . 5 41 17 117 107 3 6 . 9 24 61 26 16 40 36 21 17 2 29 38 . . . . 49 Thermal 217 | . 32 20 . . . . . . . . . . . . . 35 9 3 4 20 . . . . 4 10 13 67 Explosive 64 | . 5 1 . 1 11 8 4 4 4 3 5 6 2 . . . . . 3 1 3 . 3 . . . . . Electromagnetic 15 | . 6 . . . . . . . . . . . . . . . . . . . . . . . . . . 9 Robot Hit Streak 28 | . 10 17 . 2 8 8 14 17 9 7 10 13 11 28 11 10 13 12 12 5 . 14 10 . . 2 3 21 Robot Miss Streak 9 | . 2 3 . 2 2 4 5 6 1 4 2 3 3 8 6 7 8 4 4 9 . 6 5 . . . . 2 Penetration Max 1 | . . . . . . . . . . . . . . . . . 1 . . . . . . . . . . . Secondary Targets 6 | . 1 . . . . 1 . 3 . . . . . 1 . . . . . . . . . . . . . . Max Gunslinging Chain 1 | . 1 . . . . 1 . 1 . . . . . 1 . . . . . . . . . . . . . . Shots Hit Robots 861 | . 52 40 . 3 40 18 97 101 9 10 6 12 27 74 26 41 36 34 22 18 14 26 36 . . 2 1 116 Core Hits 1041 | . 29 19 . 5 31 57 60 133 56 31 42 53 59 78 30 35 67 50 46 11 8 39 29 . . 1 . 72 Critical Kills 8 | . . 1 . . . . . 1 . . . . . . . . . . . . . . . . . 1 . 5 Critical Parts Destroyed 4 | . . . . . . . . 1 . . . . . . . . 1 . . . . . 1 . . . . 1 Critical Strikes 17 | . . 1 . . . . 2 2 . . . . . . . . 1 . . . . . 3 . . 1 . 7 Meltdown 6 | . . . . . . . . . . . . . . . . . . . . . . . . . . 1 . 5 Destroy 6 | . . 1 . . . . . 2 . . . . . . . . 1 . . . . . 1 . . . . 1 Blast 2 | . . . . . . . . . . . . . . . . . . . . . . . 2 . . . . . Sever 3 | . . . . . . . 2 . . . . . . . . . . . . . . . . . . . . 1 Melee Attacks 112 | . . . . . 1 2 10 9 . . 1 4 2 1 1 . 13 . 6 10 14 2 3 1 3 . 10 19 Impact . | . . . . . . . . . . . . . . . . . . . . . . . . . . . . . Slashing 112 | . . . . . 1 2 10 9 . . 1 4 2 1 1 . 13 . 6 10 14 2 3 1 3 . 10 19 Piercing . | . . . . . . . . . . . . . . . . . . . . . . . . . . . . . Sneak Attacks 13 | . . . . . . . 3 1 . . 1 . . 1 . . . . . . 4 . . . . . . 3 Combat Hostiles . | . . . . . . . . . . . . . . . . . . . . . . . . . . . . . Follow-up Attacks . | . . . . . . . . . . . . . . . . . . . . . . . . . . . . . Damage Inflicted 39691 | . 991 538 . 83 1524 1929 2685 3532 1110 792 1540 1512 1137 1253 561 1208 2460 861 1005 639 2173 753 1090 . 198 152 45 9920 Guns 13298 | . 498 426 . 23 408 134 1228 1496 63 95 . 172 534 1088 561 1208 899 861 263 260 . 524 428 . . . . 2129 Cannons 3861 | . . . . . . . . . . . . . . . . . . . . . . . 322 . 198 152 45 3144 Explosions 16298 | . 474 109 . 47 1102 1795 722 1550 1047 697 1421 1340 603 . . . 1335 . 742 271 28 . 332 . . . . 2683 Melee 6069 | . . . . . . . 729 429 . . 119 . . 132 . . 226 . . 108 2141 229 . . . . . 1956 Ramming 165 | . 19 3 . 13 14 . 6 57 . . . . . 33 . . . . . . 4 . 8 . . . . 8 Kinetic 12009 | . 184 252 . 23 408 134 1228 1496 63 95 . 172 534 1088 561 374 899 861 263 260 . 524 750 . . . . 1840 Thermal 7740 | . 323 174 . . . . . . . . . . . . . 834 . . . . . . . . 198 152 45 6014 Explosive 12203 | . 397 109 . 47 1102 1795 722 1550 1047 697 1421 1340 603 . . . . . 742 271 28 . 332 . . . . . Electromagnetic 1505 | . 68 . . . . . . . . . . . . . . . 1335 . . . . . . . . . . 102 Impact . | . . . . . . . . . . . . . . . . . . . . . . . . . . . . . Slashing 6069 | . . . . . . . 729 429 . . 119 . . 132 . . 226 . . 108 2141 229 . . . . . 1956 Piercing . | . . . . . . . . . . . . . . . . . . . . . . . . . . . . . Highest Corruption 50 | . . . . . . . . 3 3 3 3 3 . . 9 9 8 1 1 1 2 1 . . 1 . . 50 Average Corruption 7 | . . . . . . . . 2 3 3 3 3 . . 8 7 3 1 1 1 1 1 . . 1 . . 29 Corruption Purged 15 | . . . . . . . . . . . . . . . . 9 . . 1 1 2 2 . . . . . . Effects 165 | . . . . . . . . 22 13 20 2 10 . . 9 17 . . 2 . 1 . . . 1 . . 68 Message Errors 44 | . . . . . . . . 6 3 6 . 1 . . 3 7 . . . . . . . . . . . 18 Matter Fused 41 | . . . . . . . . 3 5 6 . 4 . . 1 3 . . . . . . . . . . . 19 Heat Flow Errors 24 | . . . . . . . . 5 2 3 1 1 . . 1 2 . . . . . . . . . . . 9 Energy Discharges 16 | . . . . . . . . 2 1 4 . 2 . . 1 . . . 1 . 1 . . . . . . 4 Parts Rejected 2 | . . . . . . . . . . . . . . . . . . . . . . . . . . . . 2 Data Loss (minor) 29 | . . . . . . . . 6 2 1 1 2 . . 3 3 . . 1 . . . . . 1 . . 9 Data Loss (major) 1 | . . . . . . . . . . . . . . . . . . . . . . . . . . . . 1 Misfires 1 | . . . . . . . . . . . . . . . . 1 . . . . . . . . . . . . Misdirections 2 | . . . . . . . . . . . . . . . . . . . . . . . . . . . . 2 Weapon Failures 5 | . . . . . . . . . . . . . . . . 1 . . . . . . . . . . . 4 Overload Shots 1 | . . . . . . . . . . . . . . . . . 1 . . . . . . . . . . . Overflow Damage 2052 | . 5 10 . . 53 8 151 55 . 3 . . 26 . . . 112 . . 24 423 . . . 2 . 15 1165 Projectiles 789 | . . . . . . . . . . . . . . . . . . . . . . . . . 2 . 15 772 Explosions 404 | . 5 10 . . 53 8 31 18 . 3 . . 26 . . . 112 . . 24 . . . . . . . 114 Melee 859 | . . . . . . . 120 37 . . . . . . . . . . . . 423 . . . . . . 279 Knockbacks 2 | . . . . . . . . 2 . . . . . . . . . . . . . . . . . . . . Impact 2 | . . . . . . . . 2 . . . . . . . . . . . . . . . . . . . . Kinetic . | . . . . . . . . . . . . . . . . . . . . . . . . . . . . . Secondary . | . . . . . . . . . . . . . . . . . . . . . . . . . . . . . Self-Inflicted Damage 536 | . 25 11 . 38 . 19 . 31 49 41 . 59 . . . . 203 . 42 . 18 . . . . . . . Shots 18 | . 1 1 . 1 . 1 . 2 2 2 . 3 . . . . 2 . 2 . 1 . . . . . . . Rammed 30 | . 3 2 . 1 3 . 3 4 . . . . . 3 . . . . . . 9 . . . . . . 2 Targets Rammed 34 | . 3 2 . 1 3 . 4 5 . . . . . 4 . . . . . . 9 . 1 . . . . 2 Kicked 1 | . . . . . . . . . . . . . . . . . . . . . . . 1 . . . . . Crushed 3 | . . . . . . . 1 1 . . . . . 1 . . . . . . . . . . . . . . Highest Temperature 345 | . 77 124 . . 16 . 8 270 208 239 150 133 13 28 250 345 206 . 2 60 . . . . 8 . 104 212 Average Temperature 68 | . 30 51 . . 8 . 8 78 81 119 97 33 6 7 51 134 48 . 2 25 . . . . 8 . 41 51 Received Heat Transfer 3339 | . 222 141 . . 180 63 423 348 84 21 42 234 132 231 27 . 204 18 126 20 . 21 128 58 60 . 36 520 Effects 3 | . . . . . . . . . . 2 . . . . . 1 . . . . . . . . . . . . Energy Bleed 3 | . . . . . . . . . . 2 . . . . . 1 . . . . . . . . . . . . Siege Activations 1 | . . . . . . . . . . . . . . . . . . . 1 . . . . . . . . . Total Turns 11 | . . . . . . . . . . . . . . . . . . . 11 . . . . . . . . . Longest Duration 11 | . . . . . . . . . . . . . . . . . . . 11 . . . . . . . . . Robots Corrupted 2 | . . . . . . . . . . . . . . . . . 1 . . . . . . . . . . 1 Combat Hostiles 1 | . . . . . . . . . . . . . . . . . . . . . . . . . . . . 1 Parts Fried 13 | . . . . . . . . . . . . . . . . . 12 . . . . . . . . . . 1 Impact Corruptions 1 | . . . . . . . . 1 . . . . . . . . . . . . . . . . . . . . Robots Melted 6 | . . . . . . . . . . . . . . . . . . . . . . . . . . 1 . 5 Combat Hostiles 5 | . . . . . . . . . . . . . . . . . . . . . . . . . . . . 5 Parts Melted 15 | . 1 . . . . . . . . . . . . . . 1 . . . . . . . . . 1 . 12 Heat Transferred 7469 | . 700 375 . . . . . . . . . . . . . 962 . . . . . . . . 148 111 37 5136 Parts Sabotaged . | . . . . . . . . . . . . . . . . . . . . . . . . . . . . . Parts Stolen 6 | . . . . . . . . . . 2 . . . . . . . . . 4 . . . . . . . . Parts Stripped . | . . . . . . . . . . . . . . . . . . . . . . . . . . . . . Power Chain Reactions 1 | . 1 . . . . . . . . . . . . . . . . . . . . . . . . . . . Missiles Intercepted . | . . . . . . . . . . . . . . . . . . . . . . . . . . . . . Alert | -11 -10 -10 -10 -9 -8 -8 -8 -7 -7 -7 -7 -6 -6 -6 -6 -6 -6 -5 -5 -5 -5 -4 -4 -4 -4 -3 -3 -3 ------- Run | Scr Mat Min Exi Min Mat Gar Mat Fac Low Low Dat Pro Fac Ext Cet Arc Hub Fac Upp Upp Zhi Pro Fac Arm Lab Res Qua Sec Peak Influence 1193 | . 176 237 . 85 346 618 570 297 . . . . 164 417 450 411 1001 507 . . . . 411 213 . 245 509 1193 Initial 490 | . . 2 . . 1 1 300 64 . . . . . 21 204 180 77 490 . . . . 12 144 . . 137 285 Average 228 | . 76 65 . 39 149 372 318 189 . . . . 79 215 319 314 326 83 . . . . 122 190 . 112 326 494 Maximum Alert Level 4 | . . 1 . . 1 2 2 1 . . . . . 2 2 2 3 2 . . . . 2 1 . 1 2 4 Low Security (%) 51 | 100 100 91 . 100 74 4 11 50 . . . . 100 47 7 2 33 95 . . . . 76 34 . 78 16 15 Level 1 34 | . . 8 . . 25 52 67 49 . . . . . 46 51 92 19 . . . . . 17 65 . 22 63 42 Level 2 11 | . . . . . . 42 21 . . . . . . 6 40 5 45 4 . . . . 5 . . . 19 16 Level 3 1 | . . . . . . . . . . . . . . . . . 1 . . . . . . . . . . 10 Level 4 1 | . . . . . . . . . . . . . . . . . . . . . . . . . . . . 15 Level 5 . | . . . . . . . . . . . . . . . . . . . . . . . . . . . . . High Security . | . . . . . . . . . . . . . . . . . . . . . . . . . . . . . Max Security . | . . . . . . . . . . . . . . . . . . . . . . . . . . . . . Squads Dispatched 58 | . 1 . . . 3 . 6 6 . . . . 2 4 . . 5 3 . . . . 2 . . 2 5 19 Investigation 8 | . . . . . 2 . 2 1 . . . . . 2 . . . . . . . . . . . 1 . . Extermination 13 | . . . . . . . . 3 . . . . 1 . . . 1 3 . . . . 1 . . . . 4 Reinforcement 19 | . 1 . . . 1 . 3 2 . . . . 1 2 . . 4 . . . . . 1 . . 1 1 2 Assault 2 | . . . . . . . 1 . . . . . . . . . . . . . . . . . . . . 1 Garrison 3 | . . . . . . . . . . . . . . . . . . . . . . . . . . . . 3 Intercept 13 | . . . . . . . . . . . . . . . . . . . . . . . . . . . 4 9 Construction Impeded 4 | . . . . . . . 1 1 . . . . . 1 . . 1 . . . . . . . . . . . Haulers Reinforced 3 | . . . . . . . . . . . . . 1 . . . 1 . . . . . . . . 1 . . Active Scanning Responses . | . . . . . . . . . . . . . . . . . . . . . . . . . . . . . Cargo Convoy Interrupts . | . . . . . . . . . . . . . . . . . . . . . . . . . . . . . Stealth | -11 -10 -10 -10 -9 -8 -8 -8 -7 -7 -7 -7 -6 -6 -6 -6 -6 -6 -5 -5 -5 -5 -4 -4 -4 -4 -3 -3 -3 --------- Run | Scr Mat Min Exi Min Mat Gar Mat Fac Low Low Dat Pro Fac Ext Cet Arc Hub Fac Upp Upp Zhi Pro Fac Arm Lab Res Qua Sec Distress Signals 15 | . 2 . . . 2 . 3 . . . . . . 1 1 . 1 . . . . . 1 1 . . 1 2 Communications Jammed . | . . . . . . . . . . . . . . . . . . . . . . . . . . . . . Distress Signals . | . . . . . . . . . . . . . . . . . . . . . . . . . . . . . Times Spotted 459 | . 18 11 . 3 22 21 33 36 12 14 4 10 7 31 9 33 27 10 7 10 2 9 18 7 4 9 20 72 Peak Tracking Total 10 | . 4 3 . 2 7 5 4 6 5 4 4 5 4 4 5 1 6 3 4 5 2 5 10 7 3 5 9 8 Tactical Retreats 14 | . . 2 . . . . 1 3 . . . . . . . . . . . . . . . . . 2 2 4 Traps | -11 -10 -10 -10 -9 -8 -8 -8 -7 -7 -7 -7 -6 -6 -6 -6 -6 -6 -5 -5 -5 -5 -4 -4 -4 -4 -3 -3 -3 ------- Run | Scr Mat Min Exi Min Mat Gar Mat Fac Low Low Dat Pro Fac Ext Cet Arc Hub Fac Upp Upp Zhi Pro Fac Arm Lab Res Qua Sec Traps Triggered 5 | . . . . . . . 1 1 . . . . . 1 . . . . . . . . 2 . . . . . Indirectly . | . . . . . . . . . . . . . . . . . . . . . . . . . . . . . Trap Hack Attempts . | . . . . . . . . . . . . . . . . . . . . . . . . . . . . . Triggered . | . . . . . . . . . . . . . . . . . . . . . . . . . . . . . Disarmed . | . . . . . . . . . . . . . . . . . . . . . . . . . . . . . Reprogrammed 4 | . . . . . . . . . . . . . . 4 . . . . . . . . . . . . . . Reused . | . . . . . . . . . . . . . . . . . . . . . . . . . . . . . Traps Extracted . | . . . . . . . . . . . . . . . . . . . . . . . . . . . . . Installed . | . . . . . . . . . . . . . . . . . . . . . . . . . . . . . Triggered 3 | . . . . . . . . . . 2 . 1 . . . . . . . . . . . . . . . . Machines | -11 -10 -10 -10 -9 -8 -8 -8 -7 -7 -7 -7 -6 -6 -6 -6 -6 -6 -5 -5 -5 -5 -4 -4 -4 -4 -3 -3 -3 ---------- Run | Scr Mat Min Exi Min Mat Gar Mat Fac Low Low Dat Pro Fac Ext Cet Arc Hub Fac Upp Upp Zhi Pro Fac Arm Lab Res Qua Sec Machines Disabled 62 | . 1 . . . 3 2 3 1 . . . . 1 3 2 3 20 . . . 1 . 11 . 1 . 5 5 Max in Single Turn 9 | . 1 . . . 1 1 1 1 . . . . 1 . 1 1 9 . . . 1 . . . 1 . 1 1 Garrison Access 2 | . . . . . . . 1 . . . . . . . . . 1 . . . . . . . . . . . Garrison Relay 2 | . . . . . . 2 . . . . . . . . . . . . . . . . . . . . . . Network Hub 2 | . . . . . . . . . . . . . . . . . 2 . . . . . . . . . . . Machines Sabotaged . | . . . . . . . . . . . . . . . . . . . . . . . . . . . . . Garrisons Compromised . | . . . . . . . . . . . . . . . . . . . . . . . . . . . . . Overloaded Fab Kills . | . . . . . . . . . . . . . . . . . . . . . . . . . . . . . Fab Network Shutdowns . | . . . . . . . . . . . . . . . . . . . . . . . . . . . . . Hacking | -11 -10 -10 -10 -9 -8 -8 -8 -7 -7 -7 -7 -6 -6 -6 -6 -6 -6 -5 -5 -5 -5 -4 -4 -4 -4 -3 -3 -3 --------- Run | Scr Mat Min Exi Min Mat Gar Mat Fac Low Low Dat Pro Fac Ext Cet Arc Hub Fac Upp Upp Zhi Pro Fac Arm Lab Res Qua Sec Machines Accessed 93 | . 6 1 2 . 9 . 9 10 . . 4 . 3 10 1 1 7 2 . . 4 . 3 2 2 4 6 7 Terminals 67 | . 6 1 . . 5 . 7 9 . . . . 3 10 1 . 6 1 . . . . 2 . . 4 5 7 Fabricators 3 | . . . . . . . . 1 . . . . . . . . . . . . . . . 2 . . . . Repair Stations 4 | . . . . . . . 1 . . . . . . . . . . 1 . . . . 1 . . . 1 . Recycling Units 3 | . . . . . 2 . 1 . . . . . . . . . . . . . . . . . . . . . Scanalyzers 1 | . . . . . 1 . . . . . . . . . . . . . . . . . . . . . . . Garrison Access 2 | . . . . . 1 . . . . . . . . . . . 1 . . . . . . . . . . . Total Hacks 379 | . 19 4 2 . 34 . 31 26 . . 23 . 8 23 1 10 33 35 . . 13 . 12 9 21 21 20 34 Successful 224 | . 9 . 2 . 21 . 16 8 . . 23 . 3 15 1 10 20 26 . . 13 . 4 6 21 7 5 14 Failed 154 | . 10 4 . . 13 . 15 18 . . . . 5 8 . . 12 9 . . . . 8 3 . 14 15 20 Catastrophic 27 | . . 1 . . 1 . 3 5 . . . . . 1 . . 1 2 . . . . . 1 . 2 3 7 Database Lockouts 1 | . . . . . . . . . . . . . . . . . 1 . . . . . . . . . . . Manual 172 | . 15 4 1 . 21 . 19 13 . . . . 7 10 1 . 20 . . . . . 8 4 . 17 9 23 Terminals 258 | . 19 4 . . 27 . 24 25 . . . . 8 23 1 . 32 13 . . . . 8 . . 21 19 34 Fabricators 10 | . . . . . . . . 1 . . . . . . . . . . . . . . . 9 . . . . Repair Stations 32 | . . . . . . . 5 . . . . . . . . . . 22 . . . . 4 . . . 1 . Recycling Units 6 | . . . . . 4 . 2 . . . . . . . . . . . . . . . . . . . . . Scanalyzers 2 | . . . . . 2 . . . . . . . . . . . . . . . . . . . . . . . Garrison Access 2 | . . . . . 1 . . . . . . . . . . . 1 . . . . . . . . . . . Terminal Hacks 146 | . 6 . 2 . 12 . 9 6 . . 23 . 1 11 1 10 15 4 . . 13 . 1 . 21 3 2 6 Record 53 | . 1 . 1 . . . . . . . 11 . . 1 . 10 . . . . 5 . . . 21 . . 3 Part Schematic 11 | . . . . . . . . . . . 5 . . . . . 2 . . . 4 . . . . . . . Robot Schematic 4 | . . . . . . . . . . . 4 . . . . . . . . . . . . . . . . . Robot Analysis 4 | . 2 . . . 1 . . 1 . . . . . . . . . . . . . . . . . . . . Prototype ID Bank 10 | . . . . . 2 . 1 . . . 3 . . . . . . . . . 4 . . . . . . . Open Door 7 | . . . . . . . . . . . . . 1 5 1 . . . . . . . . . . . . . Level Access Points 3 | . . . . . 1 . 1 . . . . . . . . . 1 . . . . . . . . . . . Branch Access Points 3 | . . . . . . . . . . . . . . . . . . 1 . . . . 1 . . 1 . . Emergency Access Points 4 | . . . . . . . . 1 . . . . . . . . 2 . . . . . . . . 1 . . Terminal Index 3 | . 1 . . . . . 1 1 . . . . . . . . . . . . . . . . . . . . Garrison Index 1 | . . . . . . . 1 . . . . . . . . . . . . . . . . . . . . . Alert Level 1 | . 1 . . . . . . . . . . . . . . . . . . . . . . . . . . . Unreport Threat 14 | . . . . . 3 . 3 1 . . . . . 1 . . 2 3 . . . . . . . . . 1 Locate Traps 8 | . 1 . . . 2 . 1 1 . . . . . 1 . . . . . . . . . . . 1 1 . Reprogram Traps 1 | . . . . . . . . . . . . . . 1 . . . . . . . . . . . . . . Dispatch Records 2 | . . . . . . . . . . . . . . . . . 2 . . . . . . . . . . . Maintenance Status 1 | . . . . . . . . . . . . . . 1 . . . . . . . . . . . . . . Security Status 3 | . . . . . . . . . . . . . . . . . 2 . . . . . . . . . . 1 Surveillance Status 1 | . . . . . . . . . . . . . . . . . 1 . . . . . . . . . . . Patrol Status 1 | . . . . . . . . . . . . . . . . . 1 . . . . . . . . . . . Recall Investigation 1 | . . . . . 1 . . . . . . . . . . . . . . . . . . . . . . . Hauler Manifests 1 | . . . . . 1 . . . . . . . . . . . . . . . . . . . . . . . Zone Layout 8 | . . . . . 1 . 1 1 . . . . . 1 . . 2 . . . . . . . . . 1 1 EX-Prototype ID Bank 1 | . . . 1 . . . . . . . . . . . . . . . . . . . . . . . . . Fabricator Hacks 5 | . . . . . . . . 1 . . . . . . . . . . . . . . . 4 . . . . Load Schematic 2 | . . . . . . . . . . . . . . . . . . . . . . . . 2 . . . . Build 3 | . . . . . . . . 1 . . . . . . . . . . . . . . . 2 . . . . Repair Station Hacks 28 | . . . . . . . 4 . . . . . . . . . . 22 . . . . 1 . . . 1 . Scan Component 14 | . . . . . . . 2 . . . . . . . . . . 11 . . . . 1 . . . . . Repair 13 | . . . . . . . 2 . . . . . . . . . . 11 . . . . . . . . . . Refit 1 | . . . . . . . . . . . . . . . . . . . . . . . . . . . 1 . Recycling Unit Hacks 2 | . . . . . 1 . 1 . . . . . . . . . . . . . . . . . . . . . Retrieve Components 2 | . . . . . 1 . 1 . . . . . . . . . . . . . . . . . . . . . Scanalyzer 2 | . . . . . 2 . . . . . . . . . . . . . . . . . . . . . . . Insert Component 1 | . . . . . 1 . . . . . . . . . . . . . . . . . . . . . . . Analyze 1 | . . . . . 1 . . . . . . . . . . . . . . . . . . . . . . . Garrison Access Hacks 2 | . . . . . 1 . . . . . . . . . . . 1 . . . . . . . . . . . Unlock Access 1 | . . . . . 1 . . . . . . . . . . . . . . . . . . . . . . . Seal Access 1 | . . . . . . . . . . . . . . . . . 1 . . . . . . . . . . . Unauthorized Hacks 39 | . 3 . . . 5 . 2 1 . . . . 2 4 . . 4 . . . . . 2 2 . 4 2 8 Terminals 34 | . 3 . . . 3 . 1 1 . . . . 2 4 . . 4 . . . . . 2 . . 4 2 8 Track 5 | . . . . . . . . . . . . . . 1 . . 1 . . . . . 1 . . . . 2 Botnet 19 | . 2 . . . 2 . . . . . . . 1 2 . . 2 . . . . . . . . 3 2 5 Operators 10 | . 1 . . . 1 . 1 1 . . . . 1 1 . . 1 . . . . . 1 . . 1 . 1 Fabricators 2 | . . . . . . . . . . . . . . . . . . . . . . . . 2 . . . . Prioritize 2 | . . . . . . . . . . . . . . . . . . . . . . . . 2 . . . . Repair Stations . | . . . . . . . . . . . . . . . . . . . . . . . . . . . . . Recycling Units 3 | . . . . . 2 . 1 . . . . . . . . . . . . . . . . . . . . . Tunnel 3 | . . . . . 2 . 1 . . . . . . . . . . . . . . . . . . . . . Scanalyzers . | . . . . . . . . . . . . . . . . . . . . . . . . . . . . . Garrison Access . | . . . . . . . . . . . . . . . . . . . . . . . . . . . . . Data Cores Recovered 1 | . . . . . . . . . . . . . . . . . 1 . . . . . . . . . . . Used . | . . . . . . . . . . . . . . . . . . . . . . . . . . . . . Hacking Detections 63 | . 6 1 . . 6 . 6 9 . . . . 2 8 . . 6 2 . . . . 2 1 . 4 4 6 Full Trace Events 3 | . . . . . . . 1 1 . . . . . . . . . . . . . . . . . 1 . . Feedback Events . | . . . . . . . . . . . . . . . . . . . . . . . . . . . . . Feedback Blocked . | . . . . . . . . . . . . . . . . . . . . . . . . . . . . . Robot Schematics Acquired 4 | . . . . . . . . . . . 4 . . . . . . . . . . . . . . . . . Robots Built . | . . . . . . . . . . . . . . . . . . . . . . . . . . . . . Matter . | . . . . . . . . . . . . . . . . . . . . . . . . . . . . . Time . | . . . . . . . . . . . . . . . . . . . . . . . . . . . . . Total Robot Build Rating . | . . . . . . . . . . . . . . . . . . . . . . . . . . . . . Part Schematics Acquired 12 | . . . . . 1 . . . . . 5 . . . . . 2 . . . 4 . . . . . . . Parts Built 1 | . . . . . . . . 1 . . . . . . . . . . . . . . . . . . . . Matter 881 | . . . . . . . . 212 . . . . . . . . . . . . . . . 669 . . . . Time 368 | . . . . . . . . 106 . . . . . . . . . . . . . . . 262 . . . . Total Part Build Rating 6 | . . . . . . . . 6 . . . . . . . . . . . . . . . . . . . . Parts Repaired 13 | . . . . . . . 2 . . . . . . . . . . 11 . . . . . . . . . . Time 751 | . . . . . . . 89 . . . . . . . . . . 662 . . . . . . . . . . Parts Recycled . | . . . . . . . . . . . . . . . . . . . . . . . . . . . . . Recycled Matter . | . . . . . . . . . . . . . . . . . . . . . . . . . . . . . Retrieved Matter . | . . . . . . . . . . . . . . . . . . . . . . . . . . . . . Retrieved Components 7 | . . . . . 7 . . . . . . . . . . . . . . . . . . . . . . . Parts Scanalyzed 1 | . . . . . 1 . . . . . . . . . . . . . . . . . . . . . . . Part Schematics Acquired 1 | . . . . . 1 . . . . . . . . . . . . . . . . . . . . . . . Parts Damaged 1 | . . . . . 1 . . . . . . . . . . . . . . . . . . . . . . . Bothacking | -11 -10 -10 -10 -9 -8 -8 -8 -7 -7 -7 -7 -6 -6 -6 -6 -6 -6 -5 -5 -5 -5 -4 -4 -4 -4 -3 -3 -3 ------------ Run | Scr Mat Min Exi Min Mat Gar Mat Fac Low Low Dat Pro Fac Ext Cet Arc Hub Fac Upp Upp Zhi Pro Fac Arm Lab Res Qua Sec Used RIF Installer 1 | . . . . . . 1 . . . . . . . . . . . . . . . . . . . . . . Robots Hacked 10 | . . . . . . . . 2 1 . . . 1 4 . . . . . . . . 1 . 1 . . . Non-combat 2 | . . . . . . . . 1 . . . . . 1 . . . . . . . . . . . . . . Combat 5 | . . . . . . . . 1 1 . . . 1 2 . . . . . . . . . . . . . . Robot Hacks Applied 7 | . . . . . . . . 2 1 . . . 1 3 . . . . . . . . . . . . . . block_reporting 1 | . . . . . . . . . . . . . . 1 . . . . . . . . . . . . . . find_garrison 1 | . . . . . . . . 1 . . . . . . . . . . . . . . . . . . . . overwrite_iff 2 | . . . . . . . . . . . . . 1 1 . . . . . . . . . . . . . . streamctrl_high 1 | . . . . . . . . . . . . . . 1 . . . . . . . . . . . . . . formatsys_high 2 | . . . . . . . . 1 1 . . . . . . . . . . . . . . . . . . . Manual 3 | . . . . . . . . . . . . . . 1 . . . . . . . . 1 . 1 . . . Relay Couplers Released 12 | . . . . . . 9 2 . . . . . . . . . 1 . . . . . . . . . . . Machine Destruction 12 | . . . . . . 9 2 . . . . . . . . . 1 . . . . . . . . . . . Attached 3 | . . . . . . . . 2 1 . . . . . . . . . . . . . . . . . . . Robots Rewired 11 | . . . . . . . . . . . . . . 11 . . . . . . . . . . . . . . Allies Hacked . | . . . . . . . . . . . . . . . . . . . . . . . . . . . . . Hacks Repelled . | . . . . . . . . . . . . . . . . . . . . . . . . . . . . . Allies | -11 -10 -10 -10 -9 -8 -8 -8 -7 -7 -7 -7 -6 -6 -6 -6 -6 -6 -5 -5 -5 -5 -4 -4 -4 -4 -3 -3 -3 -------- Run | Scr Mat Min Exi Min Mat Gar Mat Fac Low Low Dat Pro Fac Ext Cet Arc Hub Fac Upp Upp Zhi Pro Fac Arm Lab Res Qua Sec Total Allies 37 | . . . . 5 . . . 1 1 1 . . 1 22 5 . . . . . . . 1 . . . . . Largest Group 10 | . . . . 5 5 . . 1 1 2 1 . 1 10 7 7 6 2 . . . . 1 . . . . . Highest-Rated Group 665 | . . . . 92 92 . . 19 32 100 32 . 29 403 665 665 512 181 . . . . 116 . . . . . Highest-Rated Ally 159 | . . . . 31 31 . . 19 32 68 32 . 29 159 159 153 95 95 . . . . 116 . . . . . Total Orders 4 | . . . . . . . . . . . 1 . . . . 2 1 . . . . . . . . . . . STAY 3 | . . . . . . . . . . . 1 . . . . 1 1 . . . . . . . . . . . FOLLOW 1 | . . . . . . . . . . . . . . . . 1 . . . . . . . . . . . . Ally Attacks 339 | . . . . . 28 . . . 2 14 1 . 3 113 59 16 77 16 . . . . 10 . . . . . Total Damage 10257 | . . . . . 352 . . . 69 222 41 . 58 2802 1118 563 2959 626 . . . . 1447 . . . . . Kills 70 | . . . . . 3 . . . . 2 . . . 24 9 4 19 5 . . . . 4 . . . . . Allies Corrupted . | . . . . . . . . . . . . . . . . . . . . . . . . . . . . . Allies Melted 2 | . . . . . . . . . . . . . . 1 . . 1 . . . . . . . . . . . Field Lobotomies 1 | . . . . . . . . . . 1 . . . . . . . . . . . . . . . . . . Intel | -11 -10 -10 -10 -9 -8 -8 -8 -7 -7 -7 -7 -6 -6 -6 -6 -6 -6 -5 -5 -5 -5 -4 -4 -4 -4 -3 -3 -3 ------- Run | Scr Mat Min Exi Min Mat Gar Mat Fac Low Low Dat Pro Fac Ext Cet Arc Hub Fac Upp Upp Zhi Pro Fac Arm Lab Res Qua Sec Robot Analysis Total 130 | . 2 . . . 1 . . 1 . . 126 . . . . . . . . . . . . . . . . . Derelict Logs Recovered 13 | . . 2 . 3 . . . . 3 1 . 1 . . . . . . 1 1 . 1 . . . . . . Drone Launches . | . . . . . . . . . . . . . . . . . . . . . . . . . . . . . Drone Recoveries . | . . . . . . . . . . . . . . . . . . . . . . . . . . . . . Exploration | -11 -10 -10 -10 -9 -8 -8 -8 -7 -7 -7 -7 -6 -6 -6 -6 -6 -6 -5 -5 -5 -5 -4 -4 -4 -4 -3 -3 -3 ------------- Run | Scr Mat Min Exi Min Mat Gar Mat Fac Low Low Dat Pro Fac Ext Cet Arc Hub Fac Upp Upp Zhi Pro Fac Arm Lab Res Qua Sec Turns Passed 23710 | 73 846 660 479 752 843 834 1313 2067 793 991 187 812 515 908 383 562 848 1271 671 1783 2321 710 523 44 240 200 328 1753 Spaces Moved 12407 | 44 423 353 298 455 454 513 599 1165 494 376 104 475 274 426 131 224 446 339 326 498 404 326 346 92 348 427 1063 984 Core 246 | 5 . . . . . . . . . . . . . . . . . . . 94 138 . . . 8 . . 1 Treads 9174 | 39 423 353 298 455 454 513 599 1165 494 376 104 475 274 426 131 224 446 339 326 404 . . . . . . . 856 Legs 530 | . . . . . . . . . . . . . . . . . . . . . 129 326 75 . . . . . Wheels . | . . . . . . . . . . . . . . . . . . . . . . . . . . . . . Hover . | . . . . . . . . . . . . . . . . . . . . . . . . . . . . . Flight 2372 | . . . . . . . . . . . . . . . . . . . . . 137 . 271 92 340 427 1063 42 Fastest Speed 13 | 50 160 160 160 160 148 145 145 152 152 156 156 156 160 162 160 160 160 160 160 160 200 200 24 30 29 22 13 13 Average Speed 157 | 147 160 160 160 160 149 146 146 152 153 251 156 159 161 162 161 160 160 160 160 337 525 200 116 45 49 28 20 142 Slowest Speed 1200 | 160 160 160 160 160 160 148 152 152 155 252 156 160 163 163 265 160 160 160 160 1100 1200 200 280 172 450 105 89 1100 Overloaded Moves 104 | . . . . . . . . . . . . . . . . . . . . . . . 19 . 13 . 70 2 Propulsion Burnouts . | . . . . . . . . . . . . . . . . . . . . . . . . . . . . . Robots Hopped 5 | . . . . . . . . . . . . . . . . . . . . . . . 1 . 1 . 3 . Cave-ins Triggered 1 | . . . . . . . . . . . . . . . . . . . . 1 . . . . . . . . Teleports 6 | . . . . . . . . . . . . . . . . . . . . . . . . 1 . . 3 2 Microwarps 7 | . . . . . . . . . . . . . . . . . . . . . . . . . . . . 7 Exploration Rate (%) 53 | 4 83 57 63 81 35 75 61 22 73 61 81 71 12 76 67 87 43 6 51 56 76 62 13 9 100 12 80 40 Regions Visited 28 Branch Regions 19 Pre-discovered Areas 33 | . . . 1 2 2 . 1 . 1 . 21 1 . . . . . . . 1 3 . . . . . . . Known Exits Taken 7 | . . . . . 1 . 1 . . . . . . . . . 1 1 . . . . 1 . 1 1 . . Unknown Exits Taken 20 | 1 1 1 1 1 . . . 1 1 1 1 1 1 1 1 1 . . 1 1 1 1 . 1 . . 1 . Scrap Searched 11 | . . . . 2 . . . . 2 3 . 1 . . . . . . . 2 . 1 . . . . . . Spaces Dug 101 | . 8 12 . . 1 . 1 . . . . 4 1 . . . 12 2 8 21 . . 3 . . 6 12 10 Terrain Destroyed 1319 | . 24 12 . 13 44 74 59 62 75 94 35 148 13 . . 3 329 2 86 41 66 1 51 . . 7 13 67 Melee 35 | . . . . . 1 . 1 . . . . 4 1 . . . 7 . 6 8 . . 3 . . . 4 . Projectile 59 | . . . . . . . . . . . . . . . . 3 5 2 2 13 . 1 5 . . 7 9 12 AOE 1225 | . 24 12 . 13 43 74 58 62 75 94 35 144 12 . . . 317 . 78 20 66 . 43 . . . . 55 Terrain Rammed . | . . . . . . . . . . . . . . . . . . . . . . . . . . . . . Walls Destroyed . | . . . . . . . . . . . . . . . . . . . . . . . . . . . . . Machines Disabled . | . . . . . . . . . . . . . . . . . . . . . . . . . . . . . Actions | -11 -10 -10 -10 -9 -8 -8 -8 -7 -7 -7 -7 -6 -6 -6 -6 -6 -6 -5 -5 -5 -5 -4 -4 -4 -4 -3 -3 -3 --------- Run | Scr Mat Min Exi Min Mat Gar Mat Fac Low Low Dat Pro Fac Ext Cet Arc Hub Fac Upp Upp Zhi Pro Fac Arm Lab Res Qua Sec Total 15322 | 50 518 395 301 474 568 557 893 1327 513 406 117 502 312 562 275 378 512 1026 434 557 488 351 411 93 414 495 1142 1251 Wait 1401 | . 20 1 . 9 30 . 175 48 . 11 3 . 6 32 112 91 1 641 72 3 28 1 1 . 21 38 21 36 Move 12290 | 43 422 352 297 454 453 512 598 1164 493 375 103 474 273 425 130 223 445 338 325 496 403 325 343 91 345 426 1056 906 Hop 5 | . . . . . . . . . . . . . . . . . . . . . . . 1 . 1 . 3 . Pick Up 150 | 3 15 3 2 2 12 5 3 8 . 3 2 2 3 4 1 3 1 8 . 4 4 . 5 . 6 9 9 33 Fast Attach 94 | 4 3 . . . 5 . 4 2 . . . 1 3 4 4 3 . 10 . . 5 . 4 . 6 5 8 23 Attach 114 | . 4 3 . . 3 1 3 3 . 3 1 3 1 5 2 2 1 1 3 . 1 . 9 1 5 4 8 47 Detach 33 | . 1 . . . 1 . . . . . . . . 1 . . . . . . . . 3 . 3 3 3 18 Swap 202 | . 6 2 . 1 11 11 19 21 11 3 2 8 5 23 5 3 19 3 10 11 12 5 7 . 1 . 1 2 Drop 151 | . 1 1 2 1 14 5 7 7 . 1 . . 1 8 7 6 3 4 . 2 5 . 3 . 18 . 10 45 Fire 732 | . 43 31 . 6 35 21 70 60 9 10 5 10 18 55 13 47 29 21 18 30 5 18 30 . 5 10 13 120 Melee 112 | . . . . . 1 2 10 9 . . 1 4 2 1 1 . 13 . 6 10 14 2 3 1 3 . 10 19 Ram 9 | . . . . . . . . . . . . . . . . . . . . . 9 . . . . . . . Kick 1 | . . . . . . . . . . . . . . . . . . . . . . . 1 . . . . . Crush 24 | . 3 2 . 1 3 . 4 5 . . . . . 4 . . . . . . . . . . . . . 2 Escape Stasis 2 | . . . . . . . . . . . . . . . . . . . . 1 . . 1 . . . . . Rewire 2 | . . . . . . . . . . . . . . . . . . . . . 2 . . . . . . . Trap . | . . . . . . . . . . . . . . . . . . . . . . . . . . . . . Miscellaneous . | . . . . . . . . . . . . . . . . . . . . . . . . . . . . . Route ------- -11/Scrapyard -10/Materials (discovered 5 exits: [*Mat x3] / *Min x2) -10/Mines (discovered 3 exits: [*Mat x2] / *Exi) -10/Exiles -9/Mines -8/Materials (discovered 4 exits: *Fac x3 / Gar) -8/Garrison (discovered 3 exits: *Mat x3) -8/Materials (discovered 3 exits: *Fac x3) -7/Factory -7/Lower Caves -7/Lower Caves (discovered 2 exits: *Fac / *Dat) -7/Data Miner -6/Proximity Caves -6/Factory (discovered 2 exits: Low / *Ext) -6/Extension (discovered 2 exits: *Fac / *Cet) -6/Cetus -6/Archives (discovered 3 exits: *Fac / *Hub x2) -6/Hub_04(d) (discovered 4 exits: *Fac x4) -5/Factory (discovered 2 exits: *Upp x2) -5/Upper Caves -5/Upper Caves -5/Zhirov -4/Proximity Caves -4/Factory (discovered 5 exits: *Res x2 / Upp x2 / *Arm) -4/Armory -4/Lab -3/Research (discovered 4 exits: *Res x2 / *Qua x2) -3/Quarantine (discovered 2 exits: *Res / *Sec) -3/Section 7 (discovered 1 exit: *Res) History --------- Turn | Location | Event 7 | -11/Scrapyard | Discovered new exit (range 13) 74 | -11/Scrapyard | Entered Materials 255 | -10/Materials | Discovered new exit (range 16) 307 | -10/Materials | Build established: Mutant 474 | -10/Materials | Discovered new exit (range 16) 642 | -10/Materials | Discovered new exit (range 5) 681 | -10/Materials | Discovered new exit (range 13) 804 | -10/Materials | Discovered new exit (range 10) 920 | -10/Materials | Entered Mines 940 | -10/Mines | Received a Rocket Launcher from a helpful Derelict 1041 | -10/Mines | Discovered new exit (range 5) 1228 | -10/Mines | Core integrity fell below 50% 1284 | -10/Mines | Discovered new exit (range 14) 1307 | -10/Mines | Deemed a non-threat by the Exiles lab entrance 1307 | -10/Mines | Discovered new exit (range 5) 1440 | -10/Mines | Learned Materials emergency access door positions 1449 | -10/Mines | Learned Materials stockpile data 1580 | -10/Mines | Entered Exiles 1619 | -10/Exiles | Met 8R-AWN 1646 | -10/Exiles | Met EX-HEX 1710 | -10/Exiles | Met EX-DEC 1720 | -10/Exiles | Learned location of Zion (-6) 1760 | -10/Exiles | Met EX-BIN 1849 | -10/Exiles | Aligned with FarCom system 1851 | -10/Exiles | Given EX-Vault access code 1888 | -10/Exiles | Opened EX-Vault 1903 | -10/Exiles | Found Field Lobotomy Kit 1909 | -10/Exiles | Found Longsword +1 1940 | -10/Exiles | Warned to stay clear of 0b10 Research branches 1956 | -10/Exiles | Exiles lab attacked by MAIN.C 2044 | -10/Exiles | Discovered new exit (range 11) 2059 | -10/Exiles | Stole two prototypes: Field Lobotomy Kit, Longsword +1 2059 | -10/Exiles | Entered Mines 2066 | -9/Mines | Met a Derelict bent on vengeance 2249 | -9/Mines | Learned location of Storage (-9) 2415 | -9/Mines | Assisted by bots powering up and referring to "LRC-V3" 2550 | -9/Mines | Learned Materials interactive machine intel 2612 | -9/Mines | Discovered new exit (range 15) 2811 | -9/Mines | Entered Materials 2811 | -8/Materials | Accompanied by 5 allies 2811 | -8/Materials | Evolved 4 slots: Propulsion x2, Utility x2 2814 | -8/Materials | Loaded intel: 19 interactive machine locations 2816 | -8/Materials | Led the pair of lost Derelicts to an unsafe place 3494 | -8/Materials | Identified exit to Factory 3547 | -8/Materials | Found Prototype Launcher 3547 | -8/Materials | Identified Rocket Array 3550 | -8/Materials | Found Rocket Array 3568 | -8/Materials | Found Rocket Array 3648 | -8/Materials | Identified exit to Garrison 3654 | -8/Materials | Entered Garrison 3672 | -8/Garrison | Triggered checkpoint 3711 | -8/Garrison | Destroyed 9 combat bots 3780 | -8/Garrison | Triggered checkpoint 3842 | -8/Garrison | Discovered new exit (range 8) 3861 | -8/Garrison | Installed Relay Interface Framework 3913 | -8/Garrison | Triggered checkpoint 4058 | -8/Garrison | Discovered new exit (range 15) 4094 | -8/Garrison | Triggered checkpoint 4131 | -8/Garrison | Garrison Relay disabled 4231 | -8/Garrison | Triggered checkpoint 4295 | -8/Garrison | Discovered new exit (range 10) 4323 | -8/Garrison | Triggered checkpoint 4354 | -8/Garrison | Garrison Relay disabled 4488 | -8/Garrison | Entered Materials 5660 | -8/Materials | Repaired Imp. Assault Rifle 5699 | -8/Materials | Repaired Adv. Treads 5801 | -8/Materials | Entered Factory 5801 | -7/Factory | Evolved 2 slots: Utility x2 5803 | -7/Factory | FarCom data flow suspended 6209 | -7/Factory | Discovered new exit (range 18) 6220 | -7/Factory | Build established: Bothacker-Mutant 7392 | -7/Factory | Fabricated Disruptor Cannon? 7868 | -7/Factory | Entered Lower Caves 8265 | -7/Lower Caves | Learned Factory garrison access intel 8344 | -7/Lower Caves | Attracted the attention of an 0b10 outpost 8376 | -7/Lower Caves | Destroyed 10 combat bots 8476 | -7/Lower Caves | Attracted the attention of an 0b10 checkpoint 8611 | -7/Lower Caves | Learned location of 1 exit from Factory 8633 | -7/Lower Caves | Discovered new exit (range 11) 8661 | -7/Lower Caves | Entered another Lower Caves area 8661 | -7/Lower Caves | Accompanied by 1 ally 8661 | -7/Lower Caves | Spotted UA-RGH(f) 8661 | -7/Lower Caves | Spotted N8-VVM(f) 8661 | -7/Lower Caves | Assimilated UA-RGH(f) with FLK Orb 8662 | -7/Lower Caves | Encountered a Master Thief 8662 | -7/Lower Caves | Field Lobotomy Kit stolen by Master Thief 8666 | -7/Lower Caves | Spotted NK-T3Z(f) 8667 | -7/Lower Caves | Encountered a Master Thief 8668 | -7/Lower Caves | Med. Treads stolen by Master Thief 8674 | -7/Lower Caves | Discovered new exit (range 8) 8732 | -7/Lower Caves | Encountered a Warlord checkpoint 8857 | -7/Lower Caves | Destroyed UA-RGH(f) 9405 | -7/Lower Caves | Learned Factory trap positions 9574 | -7/Lower Caves | Ambushed by wild Derelicts 9583 | -7/Lower Caves | Discovered new exit (range 6) 9652 | -7/Lower Caves | Entered Data Miner 9652 | -7/Data Miner | Accompanied by 1 ally 9652 | -7/Data Miner | Discovered new exit (range 6) 9676 | -7/Data Miner | Met Data Miner 9712 | -7/Data Miner | Learned location of Section 7 (-3) 9712 | -7/Data Miner | Acquired the access code to Warlord's prototype stash 9738 | -7/Data Miner | Received God Mode back door access code from Data Miner 9763 | -7/Data Miner | Destroyed Data Miner 9765 | -7/Data Miner | Interfaced with the Data Conduit 9787 | -7/Data Miner | Found Prototype Hackware 9789 | -7/Data Miner | Found Prototype Hackware 9839 | -7/Data Miner | Entered Proximity Caves 9841 | -6/Proximity Caves | Core integrity fell below 50% 10070 | -6/Proximity Caves | Destroyed 7 combat bots 10075 | -6/Proximity Caves | Lost 3 parts (1n1u1w) 10256 | -6/Proximity Caves | Received a Behemoth hack from an annoying Tinkerer 10300 | -6/Proximity Caves | Attracted the attention of an 0b10 checkpoint 10638 | -6/Proximity Caves | Discovered new exit (range 7) 10651 | -6/Proximity Caves | Entered Factory 10651 | -6/Factory | Evolved 2 slots: Utility x2 10652 | -6/Factory | Identified exit to Lower Caves 10653 | -6/Factory | Loaded intel: 94 trap records 10654 | -6/Factory | Loaded intel: 264 machine locations 10655 | -6/Factory | Loaded intel: 4 garrison access locations 11147 | -6/Factory | Discovered new exit (range 6) 11166 | -6/Factory | Entered Extension 11167 | -6/Extension | Loaded intel: 30 machine locations 11216 | -6/Extension | Rescued a captive Derelict 11217 | -6/Extension | Rescued a captive Derelict 11291 | -6/Extension | Identified System Mapper 11292 | -6/Extension | Identified Ghost Barrier 11294 | -6/Extension | Rescued a captive Derelict 11295 | -6/Extension | Rescued a captive Derelict 11371 | -6/Extension | Rescued a captive Derelict 11461 | -6/Extension | Spotted B-75 Beast 11479 | -6/Extension | Spotted B-75 Beast 11497 | -6/Extension | Befriended a Behemoth using the annoying Tinkerer's hack 11507 | -6/Extension | Allies destroyed B-75 Beast 11566 | -6/Extension | Disrupted transfer network 11590 | -6/Extension | Build established: Hacker-Mutant 11768 | -6/Extension | Rescued a captive Derelict 11769 | -6/Extension | Rescued a captive Derelict 11856 | -6/Extension | Rescued A7 12005 | -6/Extension | Discovered new exit (range 10) 12007 | -6/Extension | Discovered new exit (range 6) 12074 | -6/Extension | Entered Cetus 12074 | -6/Cetus | Accompanied by 7 allies (A7) 12075 | -6/Cetus | Loaded intel: 24 machine locations 12079 | -6/Cetus | Acquired a Cetus Manufacturing Module code from A7 12092 | -6/Cetus | Spotted Cetus Guard 12092 | -6/Cetus | Spotted Cetus Guard 12092 | -6/Cetus | Spotted Cetus Guard 12092 | -6/Cetus | Spotted Cetus Guard 12102 | -6/Cetus | Allies destroyed Cetus Guard 12108 | -6/Cetus | Allies destroyed Cetus Guard 12128 | -6/Cetus | Allies destroyed Cetus Guard 12129 | -6/Cetus | Allies destroyed Cetus Guard 12227 | -6/Cetus | Escorted A7 to Cetus Mainframe 12240 | -6/Cetus | Started Cetus Manufacturing Module 12265 | -6/Cetus | Manufactured an Enhanced Grunt 12290 | -6/Cetus | Manufactured an Enhanced Grunt 12315 | -6/Cetus | Manufactured an Enhanced Grunt 12340 | -6/Cetus | Manufactured an Enhanced Grunt 12365 | -6/Cetus | Manufactured an Enhanced Grunt 12391 | -6/Cetus | Cetus Manufacturing Module disabled 12412 | -6/Cetus | Discovered new exit (range 22) 12457 | -6/Cetus | Entered Archives 12457 | -6/Archives | Accompanied by 7 allies (A7) 12458 | -6/Archives | Loaded intel: 8 machine locations 12462 | -6/Archives | Received a hacking code to weaken MAIN.C 12492 | -6/Archives | Discovered new exit (range 22) 12507 | -6/Archives | Discovered new exit (range 22) 12526 | -6/Archives | Discovered new exit (range 22) 12537 | -6/Archives | Unable to access archive contents 13019 | -6/Archives | Entered Hub_04(d) 13019 | -6/Hub_04(d) | Accompanied by 6 allies 13020 | -6/Hub_04(d) | Loaded intel: 130 machine locations 13057 | -6/Hub_04(d) | Spotted B-75 Beast 13069 | -6/Hub_04(d) | Destroyed B-75 Beast 13168 | -6/Hub_04(d) | Identified exit to Factory 13187 | -6/Hub_04(d) | Central database locked down 13825 | -6/Hub_04(d) | Network Hub disabled 13854 | -6/Hub_04(d) | Network Hub disabled 13857 | -6/Hub_04(d) | Spotted Lightning 13864 | -6/Hub_04(d) | Spotted Lightning 13864 | -6/Hub_04(d) | Spotted Lightning 13867 | -6/Hub_04(d) | Entered Factory 13867 | -5/Factory | Accompanied by 2 allies 13867 | -5/Factory | Evolved 2 slots: Utility x2 13868 | -5/Factory | Loaded intel: 267 machine locations 13925 | -5/Factory | Identified exit to Upper Caves 13971 | -5/Factory | Build established: Scavenger-Mutant 14087 | -5/Factory | Repaired Flak Gun 14139 | -5/Factory | Repaired Lyr. Medium Armor Plating 14437 | -5/Factory | Repaired Centrium Heavy Treads 14547 | -5/Factory | Repaired Centrium Heavy Treads 14598 | -5/Factory | Repaired Lyr. Medium Armor Plating 14650 | -5/Factory | Repaired Lyr. Medium Armor Plating 14801 | -5/Factory | Repaired Flak Gun 14846 | -5/Factory | Repaired Flak Gun 14898 | -5/Factory | Repaired Lgt. Fission Core 14943 | -5/Factory | Repaired Lyr. Light Armor Plating 15025 | -5/Factory | Repaired Rocket Array 15138 | -5/Factory | Entered Upper Caves 15148 | -5/Upper Caves | Learned 12 Factory zone layouts 15747 | -5/Upper Caves | Spotted B-75 Beast 15799 | -5/Upper Caves | Discovered new exit (range 5) 15809 | -5/Upper Caves | Entered another Upper Caves area 15932 | -5/Upper Caves | Encountered a Warlord checkpoint 16471 | -5/Upper Caves | Spotted B-75 Beast 16515 | -5/Upper Caves | Crushed by falling debris 16543 | -5/Upper Caves | Spotted X0-7D2(f) 16545 | -5/Upper Caves | Encountered a Master Thief 16545 | -5/Upper Caves | Spotted 5G-I6C(f) 16546 | -5/Upper Caves | Encountered a Master Thief 16546 | -5/Upper Caves | Spotted CO-12Y(f) 16547 | -5/Upper Caves | Encountered a Master Thief 16547 | -5/Upper Caves | Spotted W9-W6I(f) 16547 | -5/Upper Caves | Centrium Heavy Treads stolen by Master Thief 16548 | -5/Upper Caves | Encountered a Master Thief 16548 | -5/Upper Caves | Centrium Heavy Treads stolen by Master Thief 16559 | -5/Upper Caves | Centrium Medium Armor Plating stolen by Master Thief 16565 | -5/Upper Caves | Adv. Variable Charge Gun stolen by Master Thief 17449 | -5/Upper Caves | Discovered new exit (range 14) 17592 | -5/Upper Caves | Entered Zhirov 17592 | -5/Zhirov | Discovered new exit (range 3) 17790 | -5/Zhirov | Met Zhirov 18230 | -5/Zhirov | Found Alien Artifact 18352 | -5/Zhirov | Found Alien Artifact 19186 | -5/Zhirov | Identified Integrated Reactor 19186 | -5/Zhirov | Installed Integrated Reactor, increased core energy generation (+10) 19385 | -5/Zhirov | Zhirov requested help retrieving the SGEMP Prototype 19550 | -5/Zhirov | Cloak Generator disabled 19550 | -5/Zhirov | Attacked by Zhirov 19580 | -5/Zhirov | Zhirov warped through subspace 19588 | -5/Zhirov | Zhirov detonated his lab 19913 | -5/Zhirov | Entered Proximity Caves 20009 | -4/Proximity Caves | Learned location of 1 exit from Research 20339 | -4/Proximity Caves | Attracted the attention of an 0b10 checkpoint 20603 | -4/Proximity Caves | Discovered new exit (range 13) 20623 | -4/Proximity Caves | Entered Factory 20623 | -4/Factory | Evolved 2 slots: Power x1, Propulsion x1 20624 | -4/Factory | Identified exit to Research 20625 | -4/Factory | Loaded intel: 267 machine locations 20631 | -4/Factory | Discovered exit to Research (range 8) 20826 | -4/Factory | Lost 6 parts (1n3u2w) 20935 | -4/Factory | Spotted B-86 Titan 20944 | -4/Factory | Befriended a Behemoth using the annoying Tinkerer's hack 20968 | -4/Factory | Identified exit to Upper Caves 20968 | -4/Factory | Identified exit to Armory 21007 | -4/Factory | Lost 3 parts (1p1n1u) 21051 | -4/Factory | Lost 3 parts (1p1n1u) 21146 | -4/Factory | Entered Armory 21147 | -4/Armory | Loaded intel: 84 machine locations 21189 | -4/Armory | Identified Transdimensional Reconstructor 21189 | -4/Armory | Warped through subspace to slip node 21189 | -4/Armory | Discovered new exit (range 1) 21190 | -4/Armory | Entered Lab 21190 | -4/Lab | Discovered exit to Research (range 9) 21204 | -4/Lab | Lost 3 parts (2n1u) 21209 | -4/Lab | Hidden lab's door opened automatically 21209 | -4/Lab | Sensor layout match revealed 21210 | -4/Lab | Gained access to the hidden lab's interior 21309 | -4/Lab | Decrypted terminal 21309 | -4/Lab | Acquired modification code for an L2 power cell 21314 | -4/Lab | Found Prototype Special Weapon 21322 | -4/Lab | Found Prototype Energy Cannon 21323 | -4/Lab | Found Prototype Energy Cannon 21325 | -4/Lab | Found Prototype Device 21327 | -4/Lab | Found Prototype Hackware 21327 | -4/Lab | Identified Deep Network Scanner 21354 | -4/Lab | Found Alien Artifact 21354 | -4/Lab | Identified Integrated Dissipator 21354 | -4/Lab | Installed Integrated Dissipator, increased core heat dissipation (+20) 21359 | -4/Lab | Found Alien Artifact 21359 | -4/Lab | Identified Core Expander 21359 | -4/Lab | Installed Core Expander, added new Power slot 21383 | -4/Lab | Decrypted terminal 21386 | -4/Lab | Identified Gui. Remote Datajack 21392 | -4/Lab | Detected by scanners 21397 | -4/Lab | Found Transdimensional Reconstructor 21400 | -4/Lab | Destroyed A5 with decrypted code from the hidden lab 21401 | -4/Lab | Confronted by A5 21403 | -4/Lab | Disabled Active System Cloaker 21405 | -4/Lab | Identified Warp Cannon 21417 | -4/Lab | MAIN.C forces arrive to investigate 21423 | -4/Lab | Identified Potential Cannon 21424 | -4/Lab | Identified AEGIS Remote Shield 21430 | -4/Lab | Entered Research 21430 | -3/Research | Evolved 2 slots: Propulsion x1, Utility x1 21431 | -3/Research | Identified exit to Research 21432 | -3/Research | Loaded intel: 111 machine locations 21521 | -3/Research | Discovered exit to Research (range 21) 21522 | -3/Research | Discovered new exit (range 13) 21522 | -3/Research | Spotted B-86 Titan 21533 | -3/Research | Spotted B-86 Titan 21551 | -3/Research | Identified exit to Quarantine 21630 | -3/Research | Entered Quarantine 21631 | -3/Quarantine | Loaded intel: 78 machine locations 21661 | -3/Quarantine | Found Alien Artifact 21704 | -3/Quarantine | Discovered exit to Research (range 21) 21715 | -3/Quarantine | Cryocooling Duct disabled 21730 | -3/Quarantine | Ambient heat levels rising (+20) 21730 | -3/Quarantine | Non-combat units ordered to evacuate 21762 | -3/Quarantine | Found Alien Slashing Weapon 21764 | -3/Quarantine | Identified Sigix Broadsword 21772 | -3/Quarantine | Found Prototype Processor 21772 | -3/Quarantine | Identified Spectral Analyzer 21780 | -3/Quarantine | Found Alien Artifact 21780 | -3/Quarantine | Identified Dimensional Node Initializer 21780 | -3/Quarantine | Initialized slip node 21820 | -3/Quarantine | Intercept squad dispatched 21824 | -3/Quarantine | Spotted Tracker 21829 | -3/Quarantine | Warped through subspace to slip node 21831 | -3/Quarantine | Found Transdimensional Reconstructor 21831 | -3/Quarantine | Warped through subspace to slip node 21836 | -3/Quarantine | Found Transdimensional Reconstructor 21905 | -3/Quarantine | Intercept squad dispatched 21912 | -3/Quarantine | Spotted Tracker 21913 | -3/Quarantine | Warped through subspace to slip node 21921 | -3/Quarantine | Found Transdimensional Reconstructor 21923 | -3/Quarantine | Found Alien Artifact 21946 | -3/Quarantine | Spotted Fortress 21958 | -3/Quarantine | Discovered new exit (range 6) 21958 | -3/Quarantine | Entered Section 7 21959 | -3/Section 7 | Loaded intel: 149 machine locations 22103 | -3/Section 7 | Found Integrated Reactor 22103 | -3/Section 7 | Installed Integrated Reactor, increased core energy generation (+10) 22117 | -3/Section 7 | Discovered exit to Research (range 11) 22247 | -3/Section 7 | Build established: Generator-Mutant 22352 | -3/Section 7 | Spotted S7 Guard 22446 | -3/Section 7 | Intercept squad dispatched 22449 | -3/Section 7 | Spotted Tracker 22453 | -3/Section 7 | Destroyed Tracker 22457 | -3/Section 7 | Spotted Combat Programmer 22482 | -3/Section 7 | System corruption reached 10% 22485 | -3/Section 7 | Destroyed Combat Programmer 22687 | -3/Section 7 | Destroyed S7 Guard 22698 | -3/Section 7 | Found Corrupted Prototype Protection 22698 | -3/Section 7 | Identified Hvy. Regenerative Plating 22707 | -3/Section 7 | Found Alien Artifact 22707 | -3/Section 7 | Identified Integrated Singularity Reactor 22707 | -3/Section 7 | Installed Integrated Singularity Reactor, increased core energy generation (+20) 23008 | -3/Section 7 | Found Alien Artifact 23017 | -3/Section 7 | Intercept squad dispatched 23019 | -3/Section 7 | Spotted Tracker 23019 | -3/Section 7 | Spotted Tracker 23020 | -3/Section 7 | Spotted Tracker 23025 | -3/Section 7 | Spotted Combat Programmer 23026 | -3/Section 7 | Spotted Combat Programmer 23027 | -3/Section 7 | Spotted Combat Programmer 23029 | -3/Section 7 | Destroyed Tracker 23030 | -3/Section 7 | System corruption reached 30% 23040 | -3/Section 7 | Identified Microwarp Drive 23067 | -3/Section 7 | Core integrity fell below 50% 23076 | -3/Section 7 | Identified Hpw. Transdimensional Reconstructor 23076 | -3/Section 7 | Warped through subspace 23154 | -3/Section 7 | Spotted B-86 Titan 23212 | -3/Section 7 | Lost 3 parts (3p) 23408 | -3/Section 7 | Garrison activated, responded to threat 23411 | -3/Section 7 | Destroyed Tracker 23426 | -3/Section 7 | Destroyed Tracker 23471 | -3/Section 7 | Warped through subspace 23576 | -3/Section 7 | Lost 4 parts (3p1n) 23640 | -3/Section 7 | Intercept squad dispatched 23647 | -3/Section 7 | Spotted Tracker 23659 | -3/Section 7 | Core integrity fell below 20% 23674 | -3/Section 7 | Destroyed Tracker 23674 | -3/Section 7 | Spotted Tracker 23676 | -3/Section 7 | Spotted Combat Programmer 23699 | -3/Section 7 | Spotted Combat Programmer 23708 | -3/Section 7 | First assault squad dispatched 23710 | -3/Section 7 | Identified Subatomic Replicator 23710 | -3/Section 7 | Used Subatomic Replicator to replicate Imp. Diametric Drive 23711 | -3/Section 7 | Destroyed by Tracker with Linked Autogun Last Messages --------------- 23701_ Adv. Heat Sink destroyed. 23702_ Penetrated by EMDS Slug. 23702_ Lgt. Antimatter Reactor destroyed. 23702_ Penetrated by EMDS Slug. [Achievement: Z1$+NX3F=JRE3_ZNQR] 23704_ AEGIS Remote Shield destroyed. 23704_ Penetrated by EMDS Slug. 23704_ Microwarp Drive destroyed. 23705_ Penetrated by EMDS Slug. 23707_ The unstable cave ceiling collapses. 23707_ Combat Programmer resets Tracker, system corruption cleaned. 23707_ EMDS Slug penetrates Wall. 23708_ ALERT: Significant disruption in Zone 9O, assault force dispatched. 23709_ Penetrated by EMDS Slug. 23709_ Coil Gun destroyed. 23709_ Penetrated by EMDS Slug. 23710_ Identified Subatomic Replicator. 23710_ Replicated Imp. Diametric Drive. 23711_ Penetrated by EMDS Slug. [Achievement: 40k Club] Map ----- +----------------------------------------------------+ | ????#?## #########=###= + + """ # | | ???##??######## # ![%### # #[ """ # | | ?????????#??### # """[##" # # """ " | | ????#?###?#?#"" # """=# # ! + # " | | ???#### ####T # !! "" "#########+#########" | | ??## ## ## # !! ##### #??# | | ### ####### # # "" #?#?# """""" ##?# | | ## # # """ ##??# """""""" #??# | | ?# # # ] """ #?### """""" #??# | | ?# # # #?#"" ! #??# | | ## # # """ #?#"" """""" ##?# | | ?#" # # """ ###"T """""""" #??# | | ##" + # """ #?#"" """""" #?## | | ?#" # + """###"" #??# | | ##T # # T"#?### ##?# | | ##" # # """#?#?# """ """ #??# | | ?#" # # ##??# """T""" ##?# | | ?#" = # s##################+############ | | ?# ! # ###??# # | | ####"" ""###### ###### """"" # | | #??#""T""#??#?# # # "" "" # | | ???# """ #?##?# # # c "" + | | #??#######????######## # + # | | ?#???##?#??#?##?##?### =#!* # k # | | ###################### ==#[p # # | | =@p% ############+###### | | *|!# #???#?##???# ###### | | !=# ############ | | = # + | | #########+#### # ################## | | [= !##?#????#??# | | """ """ """ ###?##?????######## | | " " " " " " * = #??????#??##?#?#??? | | """ """ """ ####?###????#?#?#?? | | ##???#????????#???? | | #??#?#??#??#?#????? | | """"""" ! ###????#???????#??? | | """"""" ###??##??##?#?????? | | """"T"""" # """"""" #####?????#??#????? | | """"""""""" # #?#?#??#???#??#???? | | ################?################?#?????????????#? | | | | | | | | | | | | | | | | | | | +----------------------------------------------------+ Best States ------------- Heat Dissipation 104 Energy Generation 115 Energy Capacity 500 Matter Stores 300 Matter Capacity 300 Sight Range 24 Terrain Scan Range 24 Terrain Scan Density 10 Power Amplification 40 Armor Coverage 1425 Resistance: KI 30 Resistance: EM 20 Weapon Shielding 66 Evasion (%) 67 Targeting Accuracy 8 Recoil Reduction 6 Offensive Hacking 25 Defensive Hacking 20 Relay Coupler Types 3 Relay Coupler Value 41 Item Schematics ----------------- Hvy. Ion Engine | -8/Materials | Scanalyzed Combat Drone Bay | -7/Data Miner | Free Lgt. Regenerative Plating | -7/Data Miner | Free Exp. Cesium-ion Thruster | -7/Data Miner | Free Exp. Terrain Scanner | -7/Data Miner | Free Plasma Sword | -7/Data Miner | Free Huge Storage Unit | -6/Hub_04(d) | Hacked Cargo Storage Unit | -6/Hub_04(d) | Hacked Assault Drone Bay | -5/Zhirov | Free Exp. Heat Sink | -5/Zhirov | Free Exp. Optical Array | -5/Zhirov | Free Imp. Arc Thrower | -5/Zhirov | Free Robot Schematics ------------------ S-27 Virus | -7/Data Miner | Free G-50 Soldier | -7/Data Miner | Free L-41 Fighter | -7/Data Miner | Free I-36 Angel | -7/Data Miner | Free Fabricated ------------ Disruptor Cannon | x1 | -7/Factory | Preloaded Alien Tech Used ----------------- Integrated Reactor Transdimensional Reconstructor Integrated Dissipator Core Expander Sigix Broadsword Dimensional Node Initializer Integrated Singularity Reactor Microwarp Drive High-powered Transdimensional Reconstructor Subatomic Replicator Achievements -------------- 40k Club Can't Touch This Decrypted! Z1$+NX3F=JRE3_ZNQR Challenges ------------ None Game ------ Seed PhasingMiningMallet Manual? 0 Play Time 04:58:22 Cumulative 111.4 hours Start 2021.10.13 @ 22:09:03 End 2021.10.20 @ 19:05:01 Sessions 12 Manual Loads 0 Difficulty Rogue Special Mode None Game No. 76 Rogue 55 Adventurer 13 Explorer 8 Win Type - Total 4 Types 3/0/1/0/0/0/0/0/0 Lore% 74 Gallery% 71 Achievement% 55 Wizard Run 0 Options --------- ASCII 0 Keyboard 0 Movement Numpad Keybinds 0 Fullscreen 2 Font 18/SmallcapsGlow Map View 76x50 Tactical HUD 1 Map Filters NONE Filters NONE Steam 1 RUN: d571c083-fed8-42a6-b3b0-dc19d5479b0a